{"text_format":"1","workbook":"xlsx","n_sheets":8,"sheets":["Instrucciones","Características datos","InfoBase 6B1","InfoProc 6B1","Prop. y Fact. de conversión","FE 6B1","Emisiones GEI 6B1","Resultados INGEI"],"not_rendered":{"charts":2,"images":7,"macros":1,"external_links":0,"defined_names":0,"comments":2,"pivot_tables":0},"unopened":[],"bounds":{"document_bytes":16777216,"sheet_cells":100000,"rows_first":2000,"rows_last":500,"rows_between":2000,"halvings":0,"cell_chars":16384,"cell_head_chars":4096},"cells_cut":0,"cells_raw":0,"read":"whole","date_system":"1900"}

{"sheet":"Instrucciones","index":0,"n_rows":75,"n_cols":10,"rows_kept":75,"cut":false,"hidden":false,"merged":[[11,1,11,6],[1,1,1,17],[2,1,2,17],[14,1,14,17],[5,1,5,17],[7,1,7,17],[8,1,9,13],[65,1,65,17],[24,5,24,17],[25,5,26,17],[27,5,27,17],[30,1,30,17],[33,2,33,8],[34,2,34,8],[35,2,35,8],[36,2,36,8],[37,2,37,8],[38,2,38,8],[39,2,39,8]]}
[]
[null,"REPORTE ANUAL DE GASES DE EFECTO INVERNADERO "]
[null,"Sector Desechos "]
[null,null,null,null,null,null,null,null,null,"Efluentes Industriales"]
[]
[null,"INSTRUCCIONES "]
[]
[null,"ALCANCE"]
[null,"Efluentes industriales, involucra a todas las emisiones de gases de efecto invernadero que se generan por la descomposición de las aguas residuales industriales en condiciones anaeróbicas. "]
[]
[]
[null,"Efluentes industriales, comprende solo una fuente:\n\n- Descomposición de la materia orgánica Efluentes industriales\n"]
[]
[]
[null,"METODOLOGÍA DE CALCULO"]
[]
[null,"Directrices del IPCC para Inventarios Nacionales del IPCC - 1996 (GL 1996) en lo que respecta a aguas residuales"]
[null,"Orientación del IPCC sobre las buenas prácticas y la gestión de la incertidumbre en los inventarios nacionales de Gases de Efecto Invernadero (OBP 2000)"]
[null,"Sector: Desechos"]
[null,null,null,null,null,"Para el cálculo de Emisiones GEI:"]
[]
[]
[]
[]
[null,null,null,null,null,"Nivel 1: El método mas básico que es aplicado cuando se utiliza niveles de actividad disponibles y factores de emisión por defecto de las guías del IPCC."]
[null,null,null,null,null,"Nivel 2: Método intermedio de cálculo en términos de esfuerzo y sofisticación, en la mayoría de casos se basa en el uso de niveles de actividad disponible y factores de emisión mas detallados o específicos."]
[]
[null,null,null,null,null,"Nivel 3: El método mas exigente en términos de complejidad y requerimientos de datos, usualmente implica el uso de modelos y ecuaciones complejas."]
[]
[]
[null,"ESTRUCTURA DE LA HOJA DE CALCULO "]
[]
[null,"Las hojas de cálculo, en este libro, están agrupadas por los siguientes colores:"]
[null,"Color de hoja","Descripción"]
[null,null,"Caracterización de datos"]
[null,null,"Información base de nivel de actividad"]
[null,null,"Información procesada de nivel de actividad"]
[null,null,"Propiedades, Factores de conversión y Factores de emisión de GEI"]
[null,null,"Hojas de estimaciones de emisiones GEI por desechos"]
[null,null,"Resultados GEI por desechos"]
[]
[null,"Los grupos de hojas se relacionan como se muestra en el diagrama:"]
[]
[]
[]
[]
[]
[]
[]
[]
[]
[]
[]
[]
[]
[]
[]
[]
[]
[]
[]
[]
[]
[]
[]
[null,"ABREVIATURAS "]
[]
[null,"GEI",": Gases de Efecto Invernadero"]
[null,"FE",": Factor de Emisión"]
[null,"INGEI",": Inventario Nacional de Gases de Efecto Invernadero "]
[null,"CH4",": Metano"]
[null,"N2O",": Oxido Nitroso"]
[null,"CO2e",": Dióxido de carbono equivalente"]
[null,"DBO",": Demanda bioquímica de oxígeno"]
[null,"DQO",": Demanda química de oxígeno"]

{"sheet":"Características datos","index":1,"n_rows":12,"n_cols":15,"rows_kept":12,"cut":false,"hidden":false,"merged":[[1,1,1,14],[9,5,11,5],[9,6,11,6],[9,12,11,12],[9,11,11,11],[6,1,6,4],[9,4,11,4],[9,3,11,3],[9,2,11,2],[9,1,11,1]]}
[]
[null,"Caracterización de Datos - Sector Desechos (Efluentes industriales)"]
[null,"Definición IPCC: se refiere a la definición -literal o abreviada- de las GL1996. En algunos casos la definición abreviada se acompaña de un comentario (columna G) con la definición literal"]
[null,"Definición INGEI: se refiere a la definición de las GL1996, ajustada a la realidad o circunstancias del Perú. Este ajuste se identificó en el desarrollo del INGEI y mantiene el concepto general de la definición original en las GL1996"]
[null,null,"No aplica o no se considera en este INGEI"]
[]
[null,"Categorización",null,null,null,"Fuente de emisión / captura","Definición","Nivel de actividad","Unidad","TIER/Nivel","Fuente de información","Uso de la información","Gases de GEI generados por el nivel de actividad","Comentarios","Hojas relacionada"]
[null,6,null,null,null,"Desechos"]
[null,null,"6B",null,null,"Tratamiento de aguas residuales","Definición IPCC: Metano y óxido nitroso generados por la descomposición de materia orgánica en las aguas.residuales.\nDefinición INGEI: metano y óxido nitroso generados por la descomposición de materia orgánica en las aguas residuales industriales y domésticas ."]
[null,null,null,"6B1",null,"Efluentes industriales","Definición IPCC: Emisiones de metano que se generan en los procesos de recolección, tratamiento y disposición en aguas superficiales de las aguas residuales y lodos generados procedentes de industrias tales como: alimentos, textiles, pulpa y producción de papel, entre otras.\n\nDefinición INGEI: Emisiones de metano generadas en los procesos de tratamiento de aguas residuales industriales.","Producción industrial según tipo de industria.","t/año",1,"Ministerio de la Producción (PRODUCE)","Sirven para determinar en su conjunto las emisiones de metano generadas por el tratamiento de las aguas residuales industriales.","CH4",null,"InfoBase 6B1"]
[null,null,null,null,null,null,null,"Demanda Química de Oxígeno (DQO)","Kg DQO/m3 agua residual",1,"Orientación del IPCC sobre las buenas prácticas y la gestión de la incertidumbre en los inventarios nacionales de gases de efecto invernadero",null,null,null,"FE 6B1"]
[null,null,null,null,null,null,null,"Agua residual generada","(m3/tonelada de producto)",1,"Orientación del IPCC sobre las buenas prácticas y la gestión de la incertidumbre en los inventarios nacionales de gases de efecto invernadero",null,null,null,"FE 6B1"]

{"sheet":"InfoBase 6B1","index":2,"n_rows":58,"n_cols":9,"rows_kept":58,"cut":false,"hidden":false,"merged":[[1,1,1,9],[3,1,3,9],[4,2,4,9],[5,2,5,9],[6,1,8,1],[6,3,6,9],[7,3,7,9],[8,3,8,9],[9,3,9,4],[9,6,9,7],[10,2,10,9],[11,2,11,9],[13,1,14,1],[10,1,11,1],[28,1,28,2],[17,1,17,2],[18,1,18,2],[19,1,19,2],[20,1,20,2],[21,1,21,2],[22,1,22,2],[23,1,23,2],[24,1,24,2],[25,1,25,2],[26,1,26,2],[27,1,27,2],[40,1,40,2],[29,1,29,2],[30,1,30,2],[31,1,31,2],[32,1,32,2],[33,1,33,2],[34,1,34,2],[35,1,35,2],[36,1,36,2],[37,1,37,2],[38,1,38,2],[39,1,39,2],[52,1,52,2],[41,1,41,2],[42,1,42,2],[43,1,43,2],[44,1,44,2],[45,1,45,2],[46,1,46,2],[47,1,47,2],[48,1,48,2],[49,1,49,2],[50,1,50,2],[51,1,51,2],[53,1,53,2],[54,1,54,2],[55,1,55,2],[56,1,56,2],[57,1,57,2]]}
[]
[null,"Información Básica: Producción industrial según tipo de industria"]
[]
[null,"DATOS DE LA INFORMACIÓN BASE"]
[null,"Código","6B"]
[null,"Subcodigo ","6B1"]
[null,"Información ","Nivel de actividad","Producción industrial según tipo de industria."]
[null,null,"Documento"]
[null,null,"Título "]
[null,"Ubicación especifica","Pagina",null,null,"Cuadro",null,null,"Anexo "]
[null,"Vínculo"]
[]
[null,"Institución informante:"]
[null,"Dirección de línea:\nEntidad:"]
[]
[]
[]
[null,"DESCRIPCIÓN",null,"UNIDAD ","año INGEI",null,"Relación de esta hoja, con otras:"]
[null,"ALIMENTOS"]
[null,"Carne de Ave Beneficiada",null,"TM."]
[null,"Carne de Vacuno Beneficiada",null,"TM."]
[null,"Conservas de Pescados y Mariscos",null,"TM.",null,null,null,"Llenar información en estas celdas"]
[null,"Harina de Anchoveta, otras Especies y Residuos",null,"TM."]
[null,"Jugos y Refrescos Diversos",null,"KG."]
[null,"Esparragos Congelados",null,"KG."]
[null,"Conservas de Esparragos",null,"KG."]
[null,"Margarina",null,"TM."]
[null,"Aceites Vegetal y Compuesto",null,"TM."]
[null,"Leche Evaporada",null,"TM."]
[null,"Quesos",null,"KG."]
[null,"Yogurt",null,"KG."]
[null,"Azúcar Refinada",null,"TM."]
[]
[null,"ELABORACION DE BEBIDAS"]
[null,"Vinos y Espumantes",null,"LT."]
[null,"Cerveza Blanca",null,"ML.LT."]
[]
[null,"FABRICACION DE PAPEL Y DE PRODUCTOS DE PAPEL"]
[null,"Papel Kraft y Similares",null,"TM."]
[null,"Papel Bond y Similares",null,"TM."]
[null,"Cartón Liner",null,"TM."]
[null,"Cartón Corrugado",null,"TM."]
[]
[null,"FABRICACION DE OTROS PRODUCTOS QUIMICOS"]
[null,"Productos de Limpieza del Hogar",null,"KG."]
[null,"Champú",null,"TM."]
[null,"Detergentes",null,"TM."]
[null,"Jabón para Lavar Ropa",null,"TM."]
[null,"Jabón de Tocador",null,"TM."]
[]
[null,"FABRICACION DE PRODUCTOS DE PLASTICO"]
[null,"Polietileno (Consumo de)",null,"KG."]
[null,"Poliestireno (Consumo de)",null,"KG."]
[null,"Polipropileno (Consumo de)",null,"KG."]
[null,"P V C (Consumo de)",null,"KG."]
[null,"Plastificantes D O P (Consumo de)",null,"KG."]
[null,"Masterbatch (Consumo de)",null,"KG."]
[null,"Resina Pet para Envases (Consumo de)",null,"KG."]

{"sheet":"InfoProc 6B1","index":3,"n_rows":44,"n_cols":6,"rows_kept":44,"cut":false,"hidden":false,"merged":[[1,1,1,3]]}
[]
[null,"Información Procesada: Producción anual en toneladas"]
[]
[null,"DESCRIPCIÓN","UNIDAD ","Año INGEI\n(t)",null,"Relación de esta hoja, con otras:"]
[null,"ALIMENTOS"]
[null,"Carne de Ave Beneficiada","t",{"$f":"'InfoBase 6B1'!E20","v":0}]
[null,"Carne de Vacuno Beneficiada","t",{"$f":"'InfoBase 6B1'!E21","v":0}]
[null,"Conservas de Pescados y Mariscos","t",{"$f":"'InfoBase 6B1'!E22","v":0}]
[null,"Harina de Anchoveta, otras Especies y Residuos","t",{"$f":"'InfoBase 6B1'!E23","v":0}]
[null,"Jugos y Refrescos Diversos","t",{"$f":"'InfoBase 6B1'!E24/'Prop. y Fact. de conversión'!$C$14","v":0}]
[null,"Esparragos Congelados","t",{"$f":"'InfoBase 6B1'!E25/'Prop. y Fact. de conversión'!$C$14","v":0}]
[null,"Conservas de Esparragos","t",{"$f":"'InfoBase 6B1'!E26/'Prop. y Fact. de conversión'!$C$14","v":0}]
[null,"Margarina","t",{"$f":"'InfoBase 6B1'!E27","v":0}]
[null,"Aceites Vegetal y Compuesto","t",{"$f":"'InfoBase 6B1'!E28","v":0}]
[null,"Leche Evaporada","t",{"$f":"'InfoBase 6B1'!E29","v":0}]
[null,"Quesos","t",{"$f":"'InfoBase 6B1'!E30/'Prop. y Fact. de conversión'!$C$14","v":0}]
[null,"Yogurt","t",{"$f":"'InfoBase 6B1'!E31/'Prop. y Fact. de conversión'!$C$14","v":0}]
[null,"Azúcar Refinada","t",{"$f":"'InfoBase 6B1'!E32","v":0}]
[]
[null,"ELABORACION DE BEBIDAS"]
[null,"Vinos y Espumantes","t",{"$f":"'InfoBase 6B1'!E35*'Prop. y Fact. de conversión'!C34/'Prop. y Fact. de conversión'!D22","v":0}]
[null,"Cerveza Blanca","t",{"$f":"'InfoBase 6B1'!E36*'Prop. y Fact. de conversión'!C35/'Prop. y Fact. de conversión'!D22*1000","v":0}]
[]
[null,"FABRICACION DE PAPEL Y DE PRODUCTOS DE PAPEL"]
[null,"Papel Kraft y Similares","t",{"$f":"'InfoBase 6B1'!E39","v":0}]
[null,"Papel Bond y Similares","t",{"$f":"'InfoBase 6B1'!E40","v":0}]
[null,"Cartón Liner","t",{"$f":"'InfoBase 6B1'!E41","v":0}]
[null,"Cartón Corrugado","t",{"$f":"'InfoBase 6B1'!E42","v":0}]
[]
[null,"FABRICACION DE OTROS PRODUCTOS QUIMICOS"]
[null,"Productos de Limpieza del Hogar","t",{"$f":"'InfoBase 6B1'!E45/'Prop. y Fact. de conversión'!C15","v":0}]
[null,"Champú","t",{"$f":"'InfoBase 6B1'!E46","v":0}]
[null,"Detergentes","t",{"$f":"'InfoBase 6B1'!E47","v":0}]
[null,"Jabón para Lavar Ropa","t",{"$f":"'InfoBase 6B1'!E48","v":0}]
[null,"Jabón de Tocador","t",{"$f":"'InfoBase 6B1'!E49","v":0}]
[]
[null,"FABRICACION DE PRODUCTOS DE PLASTICO"]
[null,"Polietileno (Consumo de)","t",{"$f":"'InfoBase 6B1'!E52/'Prop. y Fact. de conversión'!$C$15","v":0}]
[null,"Poliestireno (Consumo de)","t",{"$f":"'InfoBase 6B1'!E53/'Prop. y Fact. de conversión'!$C$15","v":0}]
[null,"Polipropileno (Consumo de)","t",{"$f":"'InfoBase 6B1'!E54/'Prop. y Fact. de conversión'!$C$15","v":0}]
[null,"P V C (Consumo de)","t",{"$f":"'InfoBase 6B1'!E55/'Prop. y Fact. de conversión'!$C$15","v":0}]
[null,"Plastificantes D O P (Consumo de)","t",{"$f":"'InfoBase 6B1'!E56/'Prop. y Fact. de conversión'!$C$15","v":0}]
[null,"Masterbatch (Consumo de)","t",{"$f":"'InfoBase 6B1'!E57/'Prop. y Fact. de conversión'!$C$15","v":0}]
[null,"Resina Pet para Envases (Consumo de)","t",{"$f":"'InfoBase 6B1'!E58/'Prop. y Fact. de conversión'!$C$15","v":0}]

{"sheet":"Prop. y Fact. de conversión","index":4,"n_rows":57,"n_cols":6,"rows_kept":57,"cut":false,"hidden":false,"merged":[[1,1,1,3],[12,1,12,3],[10,1,10,3],[31,1,31,3],[24,1,25,3],[27,1,27,3]]}
[]
[null,"Relación de metano/carbono y oxido nitroso/nitrógeno"]
[]
[null,"Peso atómico del carbono",12]
[null,"Peso atómico del hidrógeno",1]
[null,"Peso atómico del nitrógeno",14]
[null,"Peso atómico del oxígeno",16]
[null,"Relación CH4/C",{"$f":"(C4+C5*4)/C4","v":1.3333333333333333}]
[null,"Fuente: Tabla periódica de los elementos"]
[]
[null,"Conversión de unidades"]
[]
[null,"Masa"]
[null,"1 tonelada",1000,"kg"]
[null,"1 kilogramo",1000,"g"]
[null,"1 tonelada",{"$f":"C14*C15","v":1000000},"g"]
[]
[null,"Prefijo","Simbolo","Factor "]
[null,"deca","da",{"$f":"10^1","v":10}]
[null,"hecto","h",{"$f":"10^2","v":100}]
[null,"kilo","k",{"$f":"10^3","v":1000}]
[null,"mega","M",{"$f":"10^6","v":1000000}]
[null,"giga","G",{"$f":"10^9","v":1000000000}]
[null,"tera","T",{"$f":"10^12","v":1000000000000}]
[null,"Fuente: Sistema Internacional - Guide for the Use of the International System of Units (SI)\nhttp://physics.nist.gov/cuu/pdf/sp811.pdf"]
[]
[]
[null,"Volumen"]
[null,"1 centimetro cúbico",{"$f":"1/1000","v":1E-3},"l"]
[null,"Fuente: http://www.metric-conversions.org/es/volumen/tabla-de-conversion-de-centimetros-cubicos-a-litros.htm"]
[]
[null,"Densidades de bebidas"]
[]
[null,"Densidad del vino",{"$f":"(996+997)/2","v":996.5},"g/l"]
[null,"Densidad de cerveza",1010,"g/cm3"]
[null,"http://www.inti.gob.ar/interlaboratorios/informes/2010/alimentos/2010_informe_final_vinos.pdf"]
[]
[]
[]
[]
[]
[]
[]
[]
[]
[]
[]
[]
[]
[]
[]
[]
[]
[]
[]
[]
[null,null,null,null,null,"http://www.atpplleal.com/Pujat/file/DENSIDAD%20Y%20PESO%20ESPECIFICO.pdf"]

{"sheet":"FE 6B1","index":5,"n_rows":103,"n_cols":4,"rows_kept":103,"cut":false,"hidden":false,"merged":[[92,1,92,3],[1,1,1,2],[46,1,46,2],[99,1,99,3]]}
[]
[null,"Demanda Química de Oxígeno (DQO)"]
[]
[null,"ALIMENTOS","DQO\n(g/l)"]
[null,"ALIMENTOS"]
[null,"Carne de Ave Beneficiada",4.0999999999999996]
[null,"Carne de Vacuno Beneficiada",4.0999999999999996]
[null,"Conservas de Pescados y Mariscos",2.5]
[null,"Harina de Anchoveta, otras Especies y Residuos",2.5]
[null,"Jugos y Refrescos Diversos",2]
[null,"Esparragos Congelados",5]
[null,"Conservas de Esparragos",5]
[null,"Margarina",0.85]
[null,"Aceites Vegetal y Compuesto",0.85]
[null,"Leche Evaporada",2.7]
[null,"Quesos",2.7]
[null,"Yogurt",2.7]
[null,"Azúcar Refinada",3.2]
[]
[null,"ELABORACION DE BEBIDAS"]
[null,"Vinos y Espumantes",1.5]
[null,"Cerveza Blanca",2.9]
[]
[null,"FABRICACION DE PAPEL Y DE PRODUCTOS DE PAPEL"]
[null,"Papel Kraft y Similares",9]
[null,"Papel Bond y Similares",9]
[null,"Cartón Liner",9]
[null,"Cartón Corrugado",9]
[]
[null,"FABRICACION DE OTROS PRODUCTOS QUIMICOS"]
[null,"Productos de Limpieza del Hogar",0.85]
[null,"Champú",0.85]
[null,"Detergentes",0.85]
[null,"Jabón para Lavar Ropa",0.85]
[null,"Jabón de Tocador",0.85]
[]
[null,"FABRICACION DE PRODUCTOS DE PLASTICO"]
[null,"Polietileno (Consumo de)",3.7]
[null,"Poliestireno (Consumo de)",3.7]
[null,"Polipropileno (Consumo de)",3.7]
[null,"P V C (Consumo de)",3.7]
[null,"Plastificantes D O P (Consumo de)",3.7]
[null,"Masterbatch (Consumo de)",3.7]
[null,"Resina Pet para Envases (Consumo de)",3.7]
[null,"Fuente: OBP - Cuadro 5.4"]
[]
[null,"Generación de efluentes"]
[]
[null,"ALIMENTOS","Generación de efluenes\n(m3/t)"]
[null,"ALIMENTOS"]
[null,"Carne de Ave Beneficiada",13]
[null,"Carne de Vacuno Beneficiada",13]
[null,"Conservas de Pescados y Mariscos",13]
[null,"Harina de Anchoveta, otras Especies y Residuos",13]
[null,"Jugos y Refrescos Diversos",2]
[null,"Esparragos Congelados",20]
[null,"Conservas de Esparragos",20]
[null,"Margarina",3.1]
[null,"Aceites Vegetal y Compuesto",3.1]
[null,"Leche Evaporada",7]
[null,"Quesos",7]
[null,"Yogurt",7]
[null,"Azúcar Refinada",11]
[]
[null,"ELABORACION DE BEBIDAS"]
[null,"Vinos y Espumantes",23]
[null,"Cerveza Blanca",6.3]
[]
[null,"FABRICACION DE PAPEL Y DE PRODUCTOS DE PAPEL"]
[null,"Papel Kraft y Similares",162]
[null,"Papel Bond y Similares",162]
[null,"Cartón Liner",162]
[null,"Cartón Corrugado",162]
[]
[null,"FABRICACION DE OTROS PRODUCTOS QUIMICOS"]
[null,"Productos de Limpieza del Hogar",3]
[null,"Champú",3]
[null,"Detergentes",3]
[null,"Jabón para Lavar Ropa",3]
[null,"Jabón de Tocador",3]
[]
[null,"FABRICACION DE PRODUCTOS DE PLASTICO"]
[null,"Polietileno (Consumo de)",0.6]
[null,"Poliestireno (Consumo de)",0.6]
[null,"Polipropileno (Consumo de)",0.6]
[null,"P V C (Consumo de)",0.6]
[null,"Plastificantes D O P (Consumo de)",0.6]
[null,"Masterbatch (Consumo de)",0.6]
[null,"Resina Pet para Envases (Consumo de)",0.6]
[null,"Fuente: OBP - Cuadro 5.4"]
[]
[]
[null,"Factores de emisión para el tratamiento de aguas industriales"]
[]
[null,"Fracción de los efluentes tratados",0.2]
[null,"Factor de conversión de metano",0.9]
[null,"Fuente: IPCC 1996, Desperdicios, Tabla 6-8"]
[]
[]
[null,"Capacidad máxima de producción de metano (Bo)"]
[]
[null,"Bo",0.25,"kg CH4/kg DBO"]
[null,"Fuente: OBP 2000, página 5.18"]

{"sheet":"Emisiones GEI 6B1","index":6,"n_rows":62,"n_cols":20,"rows_kept":62,"cut":false,"hidden":false,"merged":[[54,14,55,14],[1,1,1,7],[8,1,9,1],[61,1,64,6],[3,2,3,3],[4,2,4,3],[5,2,5,3]]}
[]
[null,"Estimación de metano generado por el tratamiento de efluentes industriales"]
[]
[null,"Sector","Desechos"]
[null,"Categoría","Aguas residuales industriales"]
[null,"Código de categoría","6B1"]
[]
[null,"Parte 1: detalle por tipo de producto"]
[null,"TIPO DE INDUSTRIA","A","B","C","D","E","F"]
[null,null,"Total producción industrial \n(t/año)","Componente orgánico degradable \n(Kg DQO/m3 agua residual)","Agua residual producida \n(m3/tonelada de producto)","Fracción del componente orgánico degradable removido como lodo","Total del componente orgánico del agua residual industrial                       \n(kg DQO/año)","Total  del componente orgánico del lodo industrial \n(kg DQO/año)"]
[null,null,null,null,null,null,"E = [A x B x C x(1-D)]","F = (A x B x C x D)"]
[null,"ALIMENTOS"]
[null,"Carne de Ave Beneficiada",{"$f":"'InfoProc 6B1'!D6","v":0},{"$f":"'FE 6B1'!C6","v":4.0999999999999996},{"$f":"'FE 6B1'!C51","v":13},0,{"$f":"(C13*D13*E13*(1-F13))","v":0},{"$f":"C13*D13*E13*F13","v":0}]
[null,"Carne de Vacuno Beneficiada",{"$f":"'InfoProc 6B1'!D7","v":0},{"$f":"'FE 6B1'!C7","v":4.0999999999999996},{"$f":"'FE 6B1'!C52","v":13},0,{"$f":"(C14*D14*E14*(1-F14))","v":0},{"$f":"C14*D14*E14*F14","v":0}]
[null,"Conservas de Pescados y Mariscos",{"$f":"'InfoProc 6B1'!D8","v":0},{"$f":"'FE 6B1'!C8","v":2.5},{"$f":"'FE 6B1'!C53","v":13},0,0,0]
[null,"Harina de Anchoveta, otras Especies y Residuos",{"$f":"'InfoProc 6B1'!D9","v":0},{"$f":"'FE 6B1'!C9","v":2.5},{"$f":"'FE 6B1'!C54","v":13},0,0,0]
[null,"Jugos y Refrescos Diversos",{"$f":"'InfoProc 6B1'!D10","v":0},{"$f":"'FE 6B1'!C10","v":2},{"$f":"'FE 6B1'!C55","v":2},0,0,0]
[null,"Esparragos Congelados",{"$f":"'InfoProc 6B1'!D11","v":0},{"$f":"'FE 6B1'!C11","v":5},{"$f":"'FE 6B1'!C56","v":20},0,0,0]
[null,"Conservas de Esparragos",{"$f":"'InfoProc 6B1'!D12","v":0},{"$f":"'FE 6B1'!C12","v":5},{"$f":"'FE 6B1'!C57","v":20},0,0,0]
[null,"Margarina",{"$f":"'InfoProc 6B1'!D13","v":0},{"$f":"'FE 6B1'!C13","v":0.85},{"$f":"'FE 6B1'!C58","v":3.1},0,0,0]
[null,"Aceites Vegetal y Compuesto",{"$f":"'InfoProc 6B1'!D14","v":0},{"$f":"'FE 6B1'!C14","v":0.85},{"$f":"'FE 6B1'!C59","v":3.1},0,0,0]
[null,"Leche Evaporada",{"$f":"'InfoProc 6B1'!D15","v":0},{"$f":"'FE 6B1'!C15","v":2.7},{"$f":"'FE 6B1'!C60","v":7},0,0,0]
[null,"Quesos",{"$f":"'InfoProc 6B1'!D16","v":0},{"$f":"'FE 6B1'!C16","v":2.7},{"$f":"'FE 6B1'!C61","v":7},0,0,0]
[null,"Yogurt",{"$f":"'InfoProc 6B1'!D17","v":0},{"$f":"'FE 6B1'!C17","v":2.7},{"$f":"'FE 6B1'!C62","v":7},0,0,0]
[null,"Azúcar Refinada",{"$f":"'InfoProc 6B1'!D18","v":0},{"$f":"'FE 6B1'!C18","v":3.2},{"$f":"'FE 6B1'!C63","v":11},0,0,0]
[]
[null,"ELABORACION DE BEBIDAS"]
[null,"Vinos y Espumantes",{"$f":"'InfoProc 6B1'!D21","v":0},{"$f":"'FE 6B1'!C21","v":1.5},{"$f":"'FE 6B1'!C66","v":23},0,0,{"$f":"C28*D28*E28*F28","v":0}]
[null,"Cerveza Blanca",{"$f":"'InfoProc 6B1'!D22","v":0},{"$f":"'FE 6B1'!C22","v":2.9},{"$f":"'FE 6B1'!C67","v":6.3},0,0,0]
[]
[null,"FABRICACION DE PAPEL Y DE PRODUCTOS DE PAPEL"]
[null,"Papel Kraft y Similares",{"$f":"'InfoProc 6B1'!D25","v":0},{"$f":"'FE 6B1'!C25","v":9},{"$f":"'FE 6B1'!C70","v":162},0,0,0]
[null,"Papel Bond y Similares",{"$f":"'InfoProc 6B1'!D26","v":0},{"$f":"'FE 6B1'!C26","v":9},{"$f":"'FE 6B1'!C71","v":162},0,0,0]
[null,"Cartón Liner",{"$f":"'InfoProc 6B1'!D27","v":0},{"$f":"'FE 6B1'!C27","v":9},{"$f":"'FE 6B1'!C72","v":162},0,0,0]
[null,"Cartón Corrugado",{"$f":"'InfoProc 6B1'!D28","v":0},{"$f":"'FE 6B1'!C28","v":9},{"$f":"'FE 6B1'!C73","v":162},0,0,0]
[]
[null,"FABRICACION DE OTROS PRODUCTOS QUIMICOS"]
[null,"Productos de Limpieza del Hogar",{"$f":"'InfoProc 6B1'!D31","v":0},{"$f":"'FE 6B1'!C31","v":0.85},{"$f":"'FE 6B1'!C76","v":3},0,0,0]
[null,"Champú",{"$f":"'InfoProc 6B1'!D32","v":0},{"$f":"'FE 6B1'!C32","v":0.85},{"$f":"'FE 6B1'!C77","v":3},0,0,0]
[null,"Detergentes",{"$f":"'InfoProc 6B1'!D33","v":0},{"$f":"'FE 6B1'!C33","v":0.85},{"$f":"'FE 6B1'!C78","v":3},0,0,0]
[null,"Jabón para Lavar Ropa",{"$f":"'InfoProc 6B1'!D34","v":0},{"$f":"'FE 6B1'!C34","v":0.85},{"$f":"'FE 6B1'!C79","v":3},0,0,0]
[null,"Jabón de Tocador",{"$f":"'InfoProc 6B1'!D35","v":0},{"$f":"'FE 6B1'!C35","v":0.85},{"$f":"'FE 6B1'!C80","v":3},0,0,0]
[]
[null,"FABRICACION DE PRODUCTOS DE PLASTICO"]
[null,"Polietileno (Consumo de)",{"$f":"'InfoProc 6B1'!D38","v":0},{"$f":"'FE 6B1'!C38","v":3.7},{"$f":"'FE 6B1'!C83","v":0.6},0,0,0]
[null,"Poliestireno (Consumo de)",{"$f":"'InfoProc 6B1'!D39","v":0},{"$f":"'FE 6B1'!C39","v":3.7},{"$f":"'FE 6B1'!C84","v":0.6},0,0,0]
[null,"Polipropileno (Consumo de)",{"$f":"'InfoProc 6B1'!D40","v":0},{"$f":"'FE 6B1'!C40","v":3.7},{"$f":"'FE 6B1'!C85","v":0.6},0,0,0]
[null,"P V C (Consumo de)",{"$f":"'InfoProc 6B1'!D41","v":0},{"$f":"'FE 6B1'!C41","v":3.7},{"$f":"'FE 6B1'!C86","v":0.6},0,0,0]
[null,"Plastificantes D O P (Consumo de)",{"$f":"'InfoProc 6B1'!D42","v":0},{"$f":"'FE 6B1'!C42","v":3.7},{"$f":"'FE 6B1'!C87","v":0.6},0,0,0]
[null,"Masterbatch (Consumo de)",{"$f":"'InfoProc 6B1'!D43","v":0},{"$f":"'FE 6B1'!C43","v":3.7},{"$f":"'FE 6B1'!C88","v":0.6},0,0,0]
[null,"Resina Pet para Envases (Consumo de)",{"$f":"'InfoProc 6B1'!D44","v":0},{"$f":"'FE 6B1'!C44","v":3.7},{"$f":"'FE 6B1'!C89","v":0.6},0,0,0]
[null,null,null,null,null,"Total",{"$f":"SUM(G13:G51)","v":0},{"$f":"SUM(H13:H51)","v":0}]
[]
[null,"Parte 2: cálculo general",null,null,null,null,null,null,null,null,null,null,null,null,"Paso 3: Resumen final"]
[null,"A","B","C","D","E","F","G","H","I","J","K","L",null,"Fuente","A","B","C","D","E"]
[null,"Sistemas de manejo de aguas residuales ","Fracción de agua residual tratada por el sistema de manejo","Factor de conversión de metano \n(MCF)","Producto","Capacidad máxima de producción de metano - Bo\n(kg CH4/kg DC)","Factor de emisión para efluentes industriales\n(kg CH4/kg COD)","Sistemas de manejo de aguas residuales ","Fracción de lodo tratado por el sistema de manejo","Factor de conversión de metano \n(MCF)","Producto","Capacidad máxima de producción de metano - Bo\n(kg CH4/kg COD)","Factor de emisión para el lodo industrial \n(kg CH4/kg COD)",null,null,"Total componente orgánico \n(Kg DQO/año)","Factor de Emisión \n(Kg CH4/Kg DQO)","Emisión de metano sin recuperación o quema \n(Kg CH4)","Metano recuperado o quemado \n(Kg CH4)","Emisiones netas de CH4 (Gg CH4)"]
[null,null,null,null,"D = (B x C)",null,"F = (D x E)",null,null,null,"J = (H x I)",null,"L = (J x K)",null,null,null,null,"C = ( A x B)",null,"E = (C - D) / 1 000 000"]
[null,"No especificado",{"$f":"'FE 6B1'!C95","v":0.2},{"$f":"'FE 6B1'!C96","v":0.9},{"$f":"C58*D58","v":0.18000000000000002},null,null,"No especificado",0,null,{"$f":"I58*J58","v":0},null,null,null,"Agua residual",{"$f":"G52","v":0},{"$f":"G60","v":4.5000000000000005E-2},{"$f":"P58*Q58","v":0},0,{"$f":"(R58-S58)/1000000","v":0}]
[null,null,null,null,null,null,null,null,null,null,{"$f":"I59*J59","v":0},null,null,null,"Lodos",{"$f":"H52","v":0},{"$f":"M60","v":0},{"$f":"P59*Q59","v":0},null,{"$f":"(R59-S59)/1000000","v":0}]
[null,null,null,"Aggregate MCF:",{"$f":"SUM(E58:E59)","v":0.18000000000000002},{"$f":"'FE 6B1'!C102","v":0.25},{"$f":"E60*F60","v":4.5000000000000005E-2},null,null,"Aggregate                 MCF:",{"$f":"SUM(K58:K59)","v":0},null,{"$f":"K60*L60","v":0}]
[]
[null,"Nota: Bo se expresa en unidades de kg CH4 / kg DC, donde DC es el indicador del componente degradable de los residuos (ya sea DQO o DBO). Por definición, DBO es menor o igual a COD; la máxima DBO posible, es de hecho, la DQO. Por lo tanto, al estimar el máximo potencial de producción de CH4 de DBO o DQO, el CH4 potencial máxima producida por unidad de BOD es equivalente a la máxima potencial CH4 producida por unidad de DQO. Este valor es 0,25. kg CH4 / kg de DQO."]

{"sheet":"Resultados INGEI","index":7,"n_rows":12,"n_cols":10,"rows_kept":12,"cut":false,"hidden":false,"merged":[[3,1,3,4]]}
[]
[null,"REPORTE ANUAL DE GASES DE EFECTO INVERNADERO DEL SECTOR DESECHOS - EFLUENTES INDUSTRIALES"]
[]
[null,"Código de categorías de fuentes 1996",null,null,null,"Categorías de fuentes y sumideros","Dióxido de carbono\n[GgCO2]","Metano\n[MgCH4]","Óxido nitroso\n[MgN2O]","Emisiones de GEI\n[GgCO2e]"]
[null,6,null,null,null,"Desechos",{"$f":"G6+G8","v":0},{"$f":"H6+H8","v":0},0,{"$f":"J6+J8","v":0}]
[null,null,"6A",null,null,"Disposición de residuos sólidos",{"$f":"SUM(G7)","v":0},{"$f":"SUM(H7)","v":0},{"$f":"SUM(I7)","v":0},{"$f":"SUM(J7)","v":0}]
[null,null,null,"6A1",null,"Residuos sólidos",null,null,0,{"$f":"ROUND(G7+H7*21/1000+I7*310/1000,4)","v":0}]
[null,null,"6B",null,null,"Tratamiento de aguas residuales",{"$f":"SUM(G9:G10)","v":0},{"$f":"SUM(H9:H10)","v":0},{"$f":"SUM(I9:I10)","v":0},{"$f":"SUM(J9:J10)","v":0}]
[null,null,null,"6B1",null,"Efluentes industriales",{"$f":"'Emisiones GEI 6B1'!S58","v":0},{"$f":"'Emisiones GEI 6B1'!T58*1000","v":0},0,{"$f":"ROUND(G9+H9*21/1000+I9*310/1000,4)","v":0}]
[null,null,null,"6B2",null,"Tratamiento y eliminación de aguas residuales domésticas",{"$f":"SUM(G11:G12)","v":0}]
[null,null,null,null,"6B2a","Aguas residuales domésticas",0]
[null,null,null,null,"6B2b","Excretas humanas",0]